fUSD/lending_fUSD_20240606
["ID","MTS","AMOUNT","RATE_DAILY","PERIOD"]
[328631602,1717639971700,252.866618,0.00033582,30]
[328631603,1717639974018,165.59214282,0.00033582,30]
[328631604,1717639975706,274.57503809,0.00033582,30]
[328631605,1717639983179,500.0,0.00033582,30]
[328631606,1717639983557,500.0,0.00033582,30]
[328631607,1717639983808,307.42829326,0.00033582,30]
[328631608,1717639986484,271.9374811,0.00033582,30]
[328631609,1717639988605,3331.19,0.00033582,30]
[328631610,1717639988878,3331.19,0.00033582,30]
[328631611,1717639989163,3331.19,0.00033582,30]
[328631612,1717639989427,3331.19,0.00033582,30]
[328631613,1717639989698,3331.19,0.00033582,30]
[328631614,1717639989964,3331.19,0.00033582,30]
[328631615,1717639990258,3331.19,0.00033582,30]
[328631616,1717639990531,3331.19,0.00033582,30]
[328631617,1717639990834,3331.19,0.00033582,30]
[328631618,1717639990946,301.56894642,0.00033582,30]
[328631619,1717639991106,3331.19,0.00033582,30]
[328631620,1717639991409,3331.19,0.00033582,30]
[328631621,1717639991706,3331.19,0.00033582,30]
[328631622,1717639991966,3331.19,0.00033582,30]
[328631623,1717639992237,3331.19,0.00033582,30]
[328631624,1717639992521,3331.19,0.00033582,30]
[328631625,1717639992800,3331.19,0.00033582,30]
[328631626,1717639993090,3331.19,0.00033582,30]
[328631627,1717639993375,3331.19,0.00033582,30]
[328631628,1717639993666,3331.19,0.00033582,30]
[328631629,1717639993729,245.01040191,0.00033582,30]
[328631630,1717639994030,3331.19,0.00033582,30]
[328631631,1717639994306,3331.19,0.00033582,30]
[328631632,1717639994572,3331.19,0.00033582,30]
[328631633,1717639994850,3331.19,0.00033582,30]
[328631634,1717639995154,3331.1988582,0.00033582,30]
[328631635,1717639995992,500.0,0.00033582,30]
[328631636,1717639996300,500.0,0.00033582,30]
[328631637,1717639996604,639.04762594,0.00033582,30]
[328631638,1717639998923,500.0,0.00033582,30]
[328631639,1717639999517,456.67642595,0.00033582,30]
[328631640,1717640015396,500.0,0.00033582,30]
[328631641,1717640016774,282.4282,0.00033582,30]
[328631642,1717640035336,223.38912817,0.00033582,30]
[328631643,1717640049782,202.14956067,0.00033582,30]
[328631644,1717640096122,469.15883292,0.00033582,30]
[328631645,1717640100773,500.0,0.00033582,30]
[328631646,1717640101097,500.0,0.00033582,30]
[328631647,1717640101380,347.13348935,0.00033582,30]
[328631648,1717640110478,626.04133848,0.00033582,30]
[328631649,1717640126739,500.0,0.00033582,30]
[328631650,1717640127027,500.0,0.00033582,30]
[328631651,1717640127551,249.98,0.00033582,30]
[328631652,1717640130154,503.0905105,0.00033582,30]
[328631653,1717640143740,500.0,0.00033582,30]
[328631654,1717640144067,500.0,0.00033582,30]
[328631655,1717640144356,223.69749192,0.00033582,30]
[328631656,1717640147485,690.0,0.00033582,30]
[328631657,1717640171034,505.57474294,0.00033582,30]
[328631658,1717640216765,500.0,0.00033582,30]
[328631659,1717640217055,565.58256,0.00033582,30]
[328631660,1717640217735,1280.25,0.00033582,30]
[328631661,1717640218027,1280.25,0.00033582,30]
[328631662,1717640218287,1280.25,0.00033582,30]
[328631663,1717640218589,1280.25,0.00033582,30]
[328631664,1717640218897,1280.25,0.00033582,30]
[328631665,1717640219130,1280.25,0.00033582,30]
[328631666,1717640219438,1280.25,0.00033582,30]
[328631667,1717640219743,1280.25,0.00033582,30]
[328631668,1717640220015,1280.25,0.00033582,30]
[328631669,1717640220446,1280.25,0.00033582,30]
[328631670,1717640220549,1280.25,0.00033582,30]
[328631671,1717640220830,1280.25,0.00033582,30]
[328631672,1717640221019,589.94412973,0.00033582,30]
[328631673,1717640221104,1280.25,0.00033582,30]
[328631674,1717640221359,1280.25,0.00033582,30]
[328631675,1717640221655,1280.25,0.00033582,30]
[328631676,1717640221952,1280.25,0.00033582,30]
[328631677,1717640222199,1280.25,0.00033582,30]
[328631678,1717640222473,1280.25,0.00033582,30]
[328631679,1717640222764,1280.25,0.00033582,30]
[328631680,1717640223002,500.0,0.00033582,30]
[328631681,1717640223049,1280.25,0.00033582,30]
[328631682,1717640223264,604.16460475,0.00033582,30]
[328631683,1717640223665,1280.25,0.00033582,30]
[328631684,1717640223950,1280.25,0.00033582,30]
[328631685,1717640224234,1280.25,0.00033582,30]
[328631686,1717640224528,1280.30523677,0.00033582,30]
[328631687,1717640225287,500.0,0.00033582,30]
[328631688,1717640225423,500.0,0.00033582,30]
[328631689,1717640225692,533.84314155,0.00033582,30]
[328631690,1717640225839,505.66,0.00033582,30]
[328631691,1717640227628,500.0,0.00033582,30]
[328631692,1717640227928,500.0,0.00033582,30]
[328631693,1717640228198,500.0,0.00033582,30]
[328631694,1717640228449,500.0,0.00033582,30]
[328631695,1717640228750,500.0,0.00033582,30]
[328631696,1717640229083,500.0,0.00033582,30]
[328631697,1717640229303,500.0,0.00033582,30]
[328631698,1717640229618,500.0,0.00033582,30]
[328631699,1717640229681,500.0,0.00033582,30]
[328631700,1717640229922,500.0,0.00033582,30]
[328631701,1717640229967,551.42139199,0.00033582,30]
[328631702,1717640230217,500.0,0.00033582,30]
[328631703,1717640230476,500.0,0.00033582,30]
[328631704,1717640231183,198.80239635,0.00033582,30]
[328631705,1717640237072,500.0,0.00033582,30]
[328631706,1717640237350,577.59840123,0.00033582,30]
[328631707,1717640333158,546.41144461,0.00033582,30]
[328631708,1717640338984,532.49268694,0.00033582,30]
[328631709,1717640341909,520.90848638,0.00033582,30]
[328631710,1717640348828,496.9345519,0.00033627,30]
[328631711,1717640358806,-176.38520029,0.00010865,2]
[328631712,1717640358827,-3099.09729572,0.00010865,2]
[328631713,1717640358848,-2335.29723679,0.00010865,2]
[328631714,1717640358871,-954.76,0.00010866,2]
[328631715,1717640358893,-7538.65976902,0.00012885,2]
[328631716,1717640358914,-2451.28,0.00012886,2]
[328631717,1717640358934,-2619.62,0.00012936,2]
[328631718,1717640358955,-250.0,0.00012976,2]
[328631719,1717640358976,-150.0,0.00013067,2]
[328631720,1717640358997,-896.11648983,0.00013081,2]
[328631721,1717640359018,-200.0,0.00013117,2]
[328631722,1717640359040,-954.76,0.0001313,2]
[328631723,1717640359061,-1309.04935178,0.00013203,2]
[328631724,1717640359082,-454.56,0.00013253,2]
[328631725,1717640359103,-499.99,0.00013253,2]
[328631726,1717640359125,-150.99,0.00013253,2]
[328631727,1717640359148,-299.0596178,0.00013299,2]
[328631728,1717640359168,-3761.34,0.0001332,2]
[328631729,1717640359189,-19655.56812232,0.00013348,2]
[328631730,1717640359212,-23900.0,0.00013516,2]
[328631731,1717640359237,-751.11,0.00013699,2]
[328631732,1717640359258,-255.93,0.00013699,2]
[328631733,1717640359283,-200.0,0.00013699,2]
[328631734,1717640359305,-388.14538569,0.0001377,2]
[328631735,1717640359330,-420.67166776,0.00013787,2]
[328631736,1717640359352,-752.643,0.00013799,2]
[328631737,1717640359376,-309.3644,0.000138,2]
[328631738,1717640359397,-49076.7851,0.000138,2]
[328631739,1717640359419,-95580.3815,0.000138,2]
[328631740,1717640359443,-172.50142885,0.000138,2]
[328631741,1717640359464,-1000.0,0.000138,2]
[328631742,1717640359486,-2500.0,0.000138,2]
[328631743,1717640359506,-325.63559006,0.000138,2]
[328631744,1717640359528,-2398.87049879,0.000138,2]
[328631745,1717640359552,-172.50142881,0.00013825,2]
[328631746,1717640359574,-172.50142881,0.0001385,2]
[328631747,1717640359594,-1521.08769,0.0001386,2]
[328631748,1717640359616,-172.50142881,0.00013875,2]
[328631749,1717640359642,-500.0,0.00013888,2]
[328631750,1717640359662,-200.0,0.00013888,2]
[328631751,1717640359683,-201.3563572,0.00013898,2]
[328631752,1717640359704,-155.47371377,0.00013898,2]
[328631753,1717640359726,-235.35437639,0.00013898,2]
[328631754,1717640359751,-191.51502471,0.00013898,2]
[328631755,1717640359772,-335.75530356,0.00013898,2]
[328631756,1717640359793,-508.48671667,0.00013898,2]
[328631757,1717640359815,-348.79215352,0.00013898,2]
[328631758,1717640359840,-269.59692253,0.00013898,2]
[328631759,1717640359862,-524.93081759,0.00013898,2]
[328631760,1717640359887,-533.05317958,0.00013898,2]
[328631761,1717640359909,-190.78926431,0.00013898,2]
[328631762,1717640359930,-459.48166795,0.00013898,2]
[328631763,1717640359952,-284.11142306,0.00013898,2]
[328631764,1717640359974,-155.29810996,0.00013898,2]
[328631765,1717640359995,-1252.24235261,0.00013898,2]
[328631766,1717640360020,-718.25037529,0.00013898,2]
[328631767,1717640360041,-155.26117288,0.00013898,2]
[328631768,1717640360063,-155.19271095,0.00013898,2]
[328631769,1717640360085,-348.12237673,0.00013898,2]
[328631770,1717640360106,-155.7021838,0.00013898,2]
[328631771,1717640360132,-163.47046156,0.00013898,2]
[328631772,1717640360155,-162.49749552,0.00013898,2]
[328631773,1717640360176,-167.27339493,0.00013898,2]
[328631774,1717640360203,-905.92223473,0.00013898,2]
[328631775,1717640360224,-2012.91497641,0.00013899,2]
[328631776,1717640360249,-331067.8588,0.000139,2]
[328631777,1717640360269,-1000.0,0.000139,2]
[328631778,1717640360291,-172.72296756,0.000139,2]
[328631779,1717640360313,-166.560173,0.000139,2]
[328631780,1717640360339,-15899.50034281,0.000139,2]
[328631781,1717640360361,-172.50142881,0.000139,2]
[328631782,1717640360383,-553.34747342,0.000139,2]
[328631783,1717640360403,-801.63579948,0.000139,2]
[328631784,1717640360424,-190.82676214,0.000139,2]
[328631785,1717640360444,-189.43897354,0.00013986,2]
[328631786,1717640360465,-1258.88460557,0.00013998,2]
[328631787,1717640360487,-270.73204839,0.00013998,2]
[328631788,1717640360508,-155.36739299,0.00013998,2]
[328631789,1717640360531,-480.25709857,0.00013999,2]
[328631790,1717640360556,-2094.17033994,0.00013999,2]
[328631791,1717640360577,-347.12126678,0.00013999,2]
[328631792,1717640360599,-852.96721319,0.00013999,2]
[328631793,1717640360621,-48673.25016966,0.00014,2]
[328631794,1717640360649,-677.0,0.00014,2]
[328631795,1717640360674,-2612005.25024681,0.00014,2]
[328631796,1717640378515,500.0,0.00033627,30]
[328631797,1717640378790,500.0,0.00033627,30]
[328631798,1717640379052,500.0,0.00033627,30]
[328631799,1717640379326,500.0,0.00033627,30]
[328631800,1717640379591,500.0,0.00033627,30]
[328631801,1717640379862,500.0,0.00033627,30]
[328631802,1717640380501,500.0,0.00033627,30]
[328631803,1717640380774,500.0,0.00033627,30]
[328631804,1717640381115,500.0,0.00033627,30]
[328631805,1717640381508,500.0,0.00033627,30]
[328631806,1717640382105,500.0,0.00033627,30]
[328631807,1717640382382,500.0,0.00033627,30]
[328631808,1717640382656,500.0,0.00033627,30]
[328631809,1717640382958,500.0,0.00033627,30]
[328631810,1717640383258,500.0,0.00033627,30]
[328631811,1717640383565,500.0,0.00033627,30]
[328631812,1717640383845,500.0,0.00033627,30]
[328631813,1717640384450,500.0,0.00033627,30]
[328631814,1717640384766,500.0,0.00033627,30]
[328631815,1717640385034,244.32794751,0.00033627,30]
[328631816,1717640395505,266.58527066,0.00033627,30]
[328631817,1717640401771,500.0,0.00033627,30]
[328631818,1717640402044,500.0,0.00033627,30]
[328631819,1717640402318,228.58000281,0.00033627,30]
[328631820,1717640422242,500.0,0.00033627,30]
[328631821,1717640422544,500.0,0.00033627,30]
[328631822,1717640422815,535.66843277,0.00033627,30]
[328631823,1717640469257,5000.0,0.00033627,30]
[328631824,1717640583991,592.89271132,0.00033627,30]
[328631825,1717640584764,500.0,0.00033627,30]
[328631826,1717640585039,196.15,0.00033627,30]
[328631827,1717640693007,500.0,0.00033638,30]
[328631828,1717640693315,582.46624137,0.00033638,30]
[328631829,1717640697049,500.0,0.00033638,30]
[328631830,1717640701592,500.0,0.00033638,30]
[328631831,1717640701889,500.0,0.00033638,30]
[328631832,1717640702202,500.0,0.00033638,30]
[328631833,1717640702504,500.0,0.00033638,30]
[328631834,1717640702825,500.0,0.00033638,30]
[328631835,1717640703136,500.0,0.00033638,30]
[328631836,1717640703465,500.0,0.00033638,30]
[328631837,1717640703749,500.0,0.00033638,30]
[328631838,1717640704268,500.0,0.00033638,30]
[328631839,1717640704331,500.0,0.00033638,30]
[328631840,1717640704643,500.0,0.00033638,30]
[328631841,1717640705079,500.0,0.00033638,30]
[328631842,1717640705431,500.0,0.00033638,30]
[328631843,1717640705726,500.0,0.00033638,30]
[328631844,1717640706006,500.0,0.00033638,30]
[328631845,1717640706293,500.0,0.00033638,30]
[328631846,1717640706574,500.0,0.00033638,30]
[328631847,1717640706901,500.0,0.00033638,30]
[328631848,1717640707509,500.0,0.00033638,30]
[328631849,1717640707796,500.0,0.00033638,30]
[328631850,1717640708095,500.0,0.00033638,30]
[328631851,1717640708378,500.0,0.00033638,30]
[328631852,1717640708659,500.0,0.00033638,30]
[328631853,1717640708963,262.47699296,0.00033638,30]
[328631854,1717640746951,352.0,0.00033638,30]
[328631855,1717640757717,504.1336209,0.00033638,30]
[328631856,1717640760710,503.74674719,0.00033638,30]
[328631857,1717640779382,521.7943123,0.00033638,30]
[328631858,1717640795255,500.0,0.00033638,30]
[328631859,1717640795531,527.91879691,0.00033638,30]
[328631860,1717640836163,-504.57207256,0.00012458,2]
[328631861,1717640836187,-161.42524248,0.00012498,2]
[328631862,1717640836210,-297.04116734,0.00012598,2]
[328631863,1717640836235,-250.0,0.00012717,2]
[328631864,1717640836259,-250.0,0.00013285,2]
[328631865,1717640836281,-627.06293186,0.00013438,2]
[328631866,1717640836303,-695.94161283,0.00013513,2]
[328631867,1717640837097,-304.05838717,0.00013513,2]
[328631868,1717640837120,-179.01,0.00013662,2]
[328631869,1717640837140,-1312.54476336,0.00013699,2]
[328631870,1717640915233,265.74777979,0.00033638,30]
[328631871,1717640946093,-150.0,0.00011765,2]
[328631872,1717640946149,-26.38520029,0.00011765,2]
[328631873,1717640946173,-1501.58303576,0.00011766,2]
[328631874,1717640946194,-2417.64410478,0.00011767,2]
[328631875,1717640948275,-646.2410345,0.00011767,2]
[328631876,1717640948512,-1096.91,0.00011768,2]
[328631877,1717640948538,-453.04353369,0.00012369,2]
[328631878,1717640948563,-10970.15287954,0.000124,2]
[328631882,1717641018854,180.60886759,0.000124,2]
[328631893,1717641031737,-166.73,0.00013138,2]
[328631894,1717641031748,-150.0,0.00013209,2]
[328631895,1717641031760,-1349.48666469,0.00013377,2]
[328631896,1717641031775,-741.8811006,0.00013377,2]
[328631897,1717641031788,-972.51737399,0.00013377,2]
[328631898,1717641031800,-7765.74,0.00013378,2]
[328631899,1717641031812,-150.0,0.00013598,2]
[328631900,1717641031823,-6927.9413,0.00013599,2]
[328631901,1717641031834,-375.55,0.00013699,2]
[328631902,1717641031845,-304.3,0.00013699,2]
[328631903,1717641031855,-2316.84,0.00013699,2]
[328631904,1717641031866,-1438.45,0.00013699,2]
[328631905,1717641031877,-1403.86,0.00013699,2]
[328631906,1717641031886,-1000.0,0.000137,2]
[328631907,1717641031895,-300.0,0.000137,5]
[328631908,1717641032095,-906.78,0.00013734,2]
[328631909,1717641032110,-799.61,0.00013734,2]
[328631910,1717641032120,-299.99,0.00013734,2]
[328631911,1717641032131,-253.14643923,0.00013759,2]
[328631912,1717641032141,-5063.93,0.00013759,2]
[328631913,1717641032150,-1411.31,0.00013759,2]
[328631914,1717641032159,-607.45,0.00013759,2]
[328631915,1717641032167,-150.99,0.00013759,2]
[328631916,1717641032176,-493.59488678,0.00013759,2]
[328631917,1717641032188,-275.43511322,0.00013759,2]
[328631919,1717641032197,-700.0,0.000138,5]
[328631921,1717641032207,-1248.31846585,0.00013898,2]
[328631923,1717641032216,-412.44854122,0.00013898,2]
[328631925,1717641032226,-453.0,0.00013898,2]
[328631927,1717641032235,-311.19730625,0.00013898,2]
[328631929,1717641032246,-34.25341717,0.00013898,2]
[328631931,1717641032256,-1894.06802843,0.00013898,2]
[328631933,1717641032265,-545.44684599,0.00013898,2]
[328631934,1717641032275,-48.29788114,0.00013898,2]
[328631935,1717641032286,-1552.56034802,0.00013898,2]
[328631936,1717641032296,-241.28370126,0.00013898,2]
[328631937,1717641032306,-164.01789612,0.00013898,2]
[328631938,1717641032315,-5427.06362044,0.00013898,2]
[328631939,1717641032326,-3029.2312199,0.00013898,2]
[328631940,1717641032335,-157.09748518,0.00013899,2]
[328631941,1717641032345,-9236.12406854,0.00013899,2]
[328631942,1717641032354,-187.06820988,0.000139,2]
[328631943,1717641032363,-10000.0,0.000139,2]
[328631944,1717641032371,-7500.0,0.000139,2]
[328631945,1717641032381,-2500.0,0.000139,2]
[328631946,1717641032390,-1000.0,0.000139,5]
[328631947,1717641032399,-312.9892887,0.000139,2]
[328631948,1717641032408,-190.03612734,0.000139,2]
[328631949,1717641032417,-1000.0,0.000139,2]
[328631950,1717641032427,-175.65702329,0.000139,2]
[328631951,1717641032436,-171.21,0.0001399,2]
[328631952,1717641032445,-190.39267218,0.00013996,2]
[328631953,1717641032454,-1105.44783704,0.00013997,2]
[328631954,1717641032463,-366.27720515,0.00013998,2]
[328631955,1717641032472,-155.16302148,0.00013998,2]
[328631956,1717641032482,-238.74617707,0.00013998,2]
[328631957,1717641032491,-297.3790874,0.00013998,2]
[328631958,1717641032501,-166.30963243,0.00013998,2]
[328631959,1717641032512,-623.68338368,0.00013998,2]
[328631960,1717641032521,-155.0,0.00013998,2]
[328631961,1717641032531,-155.3356431,0.00013998,2]
[328631962,1717641032542,-155.31425971,0.00013998,2]
[328631963,1717641032551,-155.4612094,0.00013998,2]
[328631964,1717641032565,-155.38670303,0.00013998,2]
[328631965,1717641032575,-155.24083122,0.00013998,2]
[328631966,1717641032584,-207.96127058,0.00013998,2]
[328631967,1717641032595,-155.46104309,0.00013998,2]
[328631968,1717641032606,-2200.51774822,0.00013998,2]
[328631969,1717641032615,-155.40443031,0.00013998,2]
[328631970,1717641032624,-158.77391352,0.00013998,2]
[328631971,1717641032633,-660.70724905,0.00013998,2]
[328631972,1717641032642,-3024.02308304,0.00013998,2]
[328631973,1717641032652,-155.41999047,0.00013998,2]
[328631974,1717641032662,-624.86771419,0.00013998,2]
[328631975,1717641032672,-2897.35400515,0.00013999,2]
[328631976,1717641032682,-7587.17833764,0.00013999,2]
[328631977,1717641032691,-155.39229805,0.00013999,2]
[328631978,1717641032702,-505986.32767873,0.00014,2]
[328631979,1717641032715,-1212.8,0.00014,2]
[328631980,1717641032728,-13876.57236958,0.00014,2]
[328631981,1717641032740,-11085.82667898,0.00014,2]
[328631982,1717641032751,-41007.09035459,0.00014,2]
[328631983,1717641032762,-3064.60664569,0.00014,2]
[328631984,1717641032803,-929.17737229,0.00014,2]
[328631985,1717641032815,-35645.29938769,0.00014,2]
[328631986,1717641032828,-60263.09069629,0.00014,2]
[328631987,1717641032839,-2456.09841182,0.00014,2]
[328631988,1717641032851,-301.90641716,0.00014,2]
[328631989,1717641032862,-681.39069848,0.00014,2]
[328631990,1717641032875,-7210.56446147,0.00014,2]
[328631991,1717641032886,-2748.05976961,0.00014,2]
[328631992,1717641032897,-376.2556118,0.00014,2]
[328631993,1717641032920,-2197.83270384,0.00014,2]
[328631994,1717641036651,180.60886759,0.000124,2]
[328631997,1717641037735,-2333.73749603,0.00014,2]
[328631999,1717641037747,-5057.35555689,0.00014,2]
[328632000,1717641037760,-853.08727691,0.00014,2]
[328632001,1717641038259,-2053.04985431,0.00014,2]
[328632002,1717641038271,-1829.6655901,0.00014,2]
[328632003,1717641038283,-788779.0800533,0.00014,2]
[328632004,1717641038548,-5258.17319065,0.00014,2]
[328632006,1717641038563,-5169.77351889,0.00014,2]
[328632008,1717641038575,-11827.7989975,0.00014,2]
[328632015,1717641040872,-1071.144,0.00014,2]
[328632017,1717641041667,-1.373e-05,0.00014,2]
[328632018,1717641041697,-180564.09867376,0.00014,2]
[328632019,1717641041706,-2219.60591723,0.00014,2]
[328632020,1717641041718,-828.30596393,0.00014,2]
[328632021,1717641041730,-489.47653646,0.00014,2]
[328632022,1717641041764,1037.44447059,0.00011668,2]
[328632023,1717641041788,1587.15242941,0.00011668,2]
[328632024,1717641042234,-69797.63647814,0.00014,2]
[328632025,1717641042248,-500.0,0.00014,2]
[328632026,1717641042259,-500.0,0.00014,2]
[328632027,1717641042269,-500.0,0.00014,2]
[328632028,1717641042279,-500.0,0.00014,2]
[328632029,1717641042289,-500.0,0.00014,2]
[328632030,1717641042299,-500.0,0.00014,2]
[328632031,1717641042308,-500.0,0.00014,2]
[328632032,1717641042318,-500.0,0.00014,2]
[328632033,1717641042328,-500.0,0.00014,2]
[328632034,1717641042338,-500.0,0.00014,2]
[328632035,1717641042347,-500.0,0.00014,2]
[328632036,1717641042357,-500.0,0.00014,2]
[328632037,1717641042367,-500.0,0.00014,2]
[328632038,1717641042376,-500.0,0.00014,2]
[328632039,1717641042386,-500.0,0.00014,2]
[328632042,1717641042581,-500.0,0.00014,2]
[328632043,1717641042590,-500.0,0.00014,2]
[328632044,1717641042600,-500.0,0.00014,2]
[328632045,1717641042610,-500.0,0.00014,2]
[328632046,1717641042619,-500.0,0.00014,2]
[328632047,1717641042631,-500.0,0.00014,2]
[328632048,1717641042641,-500.0,0.00014,2]
[328632049,1717641042651,-500.0,0.00014,2]
[328632050,1717641042661,-500.0,0.00014,2]
[328632051,1717641042671,-500.0,0.00014,2]
[328632052,1717641042680,-500.0,0.00014,2]
[328632053,1717641042690,-500.0,0.00014,2]
[328632054,1717641042700,-500.0,0.00014,2]
[328632056,1717641042710,-500.0,0.00014,2]
[328632059,1717641042720,-500.0,0.00014,2]
[328632061,1717641042730,-500.0,0.00014,2]
[328632063,1717641042741,-500.0,0.00014,2]
[328632064,1717641042751,-500.0,0.00014,2]
[328632066,1717641042760,-500.0,0.00014,2]
[328632067,1717641042770,-500.0,0.00014,2]
[328632069,1717641042779,-500.0,0.00014,2]
[328632070,1717641042789,-500.0,0.00014,2]
[328632072,1717641042799,-500.0,0.00014,2]
[328632074,1717641042809,-500.0,0.00014,2]
[328632075,1717641042818,-500.0,0.00014,2]
[328632077,1717641042828,-500.0,0.00014,2]
[328632079,1717641042838,-500.0,0.00014,2]
[328632081,1717641042847,-500.0,0.00014,2]
[328632082,1717641042857,-500.0,0.00014,2]
[328632083,1717641042866,-500.0,0.00014,2]
[328632084,1717641042876,-500.0,0.00014,2]
[328632085,1717641042885,-500.0,0.00014,2]
[328632086,1717641042895,-500.0,0.00014,2]
[328632087,1717641042904,-500.0,0.00014,2]
[328632088,1717641042913,-500.0,0.00014,2]
[328632089,1717641042923,-500.0,0.00014,2]
[328632090,1717641042932,-500.0,0.00014,2]
[328632091,1717641042942,-500.0,0.00014,2]
[328632092,1717641042951,-500.0,0.00014,2]
[328632093,1717641042960,-500.0,0.00014,2]
[328632094,1717641042970,-500.0,0.00014,2]
[328632095,1717641042980,-500.0,0.00014,2]
[328632096,1717641042989,-500.0,0.00014,2]
[328632097,1717641042999,-500.0,0.00014,2]
[328632098,1717641043011,-500.0,0.00014,2]
[328632099,1717641043023,-500.0,0.00014,2]
[328632100,1717641043034,-500.0,0.00014,2]
[328632101,1717641043044,-500.0,0.00014,2]
[328632102,1717641043056,-500.0,0.00014,2]
[328632103,1717641043068,-500.0,0.00014,2]
[328632104,1717641043078,-500.0,0.00014,2]
[328632105,1717641043089,-500.0,0.00014,2]
[328632106,1717641043099,-500.0,0.00014,2]
[328632107,1717641043110,-500.0,0.00014,2]
[328632108,1717641043120,-500.0,0.00014,2]
[328632109,1717641043131,-500.0,0.00014,2]
[328632110,1717641043141,-500.0,0.00014,2]
[328632111,1717641043151,-500.0,0.00014,2]
[328632112,1717641043161,-500.0,0.00014,2]
[328632113,1717641043172,-500.0,0.00014,2]
[328632114,1717641043181,-500.0,0.00014,2]
[328632115,1717641043191,-500.0,0.00014,2]
[328632116,1717641043200,-500.0,0.00014,2]
[328632117,1717641043210,-500.0,0.00014,2]
[328632118,1717641043220,-500.0,0.00014,2]
[328632119,1717641043230,-500.0,0.00014,2]
[328632120,1717641043240,-500.0,0.00014,2]
[328632121,1717641043249,-500.0,0.00014,2]
[328632122,1717641043261,-500.0,0.00014,2]
[328632123,1717641043273,-500.0,0.00014,2]
[328632124,1717641043283,-500.0,0.00014,2]
[328632125,1717641043292,-500.0,0.00014,2]
[328632126,1717641043301,-500.0,0.00014,2]
[328632127,1717641043310,-500.0,0.00014,2]
[328632128,1717641043319,-500.0,0.00014,2]
[328632129,1717641043328,-500.0,0.00014,2]
[328632130,1717641043338,-500.0,0.00014,2]
[328632131,1717641043348,-500.0,0.00014,2]
[328632132,1717641043357,-500.0,0.00014,2]
[328632133,1717641043367,-500.0,0.00014,2]
[328632134,1717641043376,-500.0,0.00014,2]
[328632135,1717641043385,-500.0,0.00014,2]
[328632136,1717641043394,-500.0,0.00014,2]
[328632137,1717641043404,-500.0,0.00014,2]
[328632138,1717641043413,-500.0,0.00014,2]
[328632139,1717641043423,-500.0,0.00014,2]
[328632140,1717641043433,-500.0,0.00014,2]
[328632141,1717641043442,-500.0,0.00014,2]
[328632142,1717641043451,-500.0,0.00014,2]
[328632143,1717641043461,-500.0,0.00014,2]
[328632144,1717641043471,-500.0,0.00014,2]
[328632145,1717641043481,-500.0,0.00014,2]
[328632146,1717641043490,-500.0,0.00014,2]
[328632147,1717641043500,-500.0,0.00014,2]
[328632148,1717641043513,-500.0,0.00014,2]